Cogmind - Beta 16.1 @@@ ROGUE MODE // 2026.02.17 @ 00:14:02 Player: Gamma Result: Self-destructed Performance ------------- Evolutions (4) 2000 Regions Visited (11) 2200 Robots Destroyed (56) 280 Value Destroyed (2030) 2030 Prototype IDs (25) 500 Alien Tech Used (0) 0 Bonus (1066) 1066 TOTAL SCORE: 8076 Bonus ------- High Alert Combat Kills 36 Follower Combat Kills 430 Aligned with FarCom 300 Met Imprinter 300 Cogmind --------- Core Integrity 646/850 Matter 249/300 Energy 9/100 System Corruption 0% Temperature Cool (0) Movement Walking (120) Location -6/Factory Parts ------- > --- POWER (1) -------- (None) > --- PROPULSION (4) --- Carbon-fiber Leg Carbon-fiber Leg > --- UTILITY (7) ------ Large Storage Unit Advanced Terrain Scan Processor Improved Salvage Targeting Computer Makeshift Hacking Suite > --- WEAPON (3) ------- (None) > --- INVENTORY (15) --- Nuclear Core Improved Medium Treads Trap Reconfigurator Flak Cannon Flak Cannon Heavy Flak Cannon Heavy Flak Cannon Missile Launcher Heavy Missile Launcher Makeshift Spear Self-destruct Interrupter (50) Self-destruct Interrupter (50) Peak State ------------ > --- POWER ------------ Fission Core > --- PROPULSION ------- Carbon-fiber Leg Carbon-fiber Leg Carbon-fiber Leg VSS Leg > --- UTILITY ---------- Improved Heat Sink Improved Cooling System Large Storage Unit Advanced Terrain Scan Processor Improved Salvage Targeting Computer Hardened Medium Armor Plating > --- WEAPON ----------- Particle Gun Flak Gun Flak Cannon > --- INVENTORY -------- Nuclear Core Carbon-fiber Leg Flexi-carbon Leg Makeshift Hacking Suite Trap Reconfigurator Flak Cannon Flak Cannon Heavy Flak Cannon Heavy Flak Cannon Missile Launcher Heavy Missile Launcher Makeshift Spear Self-destruct Interrupter Self-destruct Interrupter [Rating: 51] Favorites ----------- Power Improved Deuterium Engine Engine Improved Deuterium Engine Power Core Fission Core Propulsion Carbon-fiber Leg Treads Armored Treads Leg Carbon-fiber Leg Wheel Wheel Hover Unit Gravmag System Utility Improved Heat Sink Device Improved Heat Sink Storage Large Storage Unit Processor Advanced Terrain Scan Processor Hackware Hacking Suite Protection Hardened Medium Armor Plating Weapon Flak Cannon Energy Gun Particle Gun Ballistic Gun Flak Gun Ballistic Cannon Flak Cannon Launcher Grenade Launcher Piercing Weapon Makeshift Spear Build | -11 -10 -10 -10 -9 -8 -7 -7 -7 -7 -6 -6 ------- Run | Yrd Mat Min Exi Min Mat Fac Low Low Zio Pro Fac Slots Evolved 8 | . . . . . 4 2 . . . . 2 Power . | . . . . . . . . . . . . Propulsion 2 | . . . . . 2 . . . . . . Utility 5 | . . . . . 1 2 . . . . 2 Weapon 1 | . . . . . 1 . . . . . . Parts Attached 66 | 6 4 2 1 2 19 6 6 2 4 11 3 Power 5 | 1 . . . . 2 1 . . . 1 . Engine 3 | 1 . . . . 1 1 . . . . . Core 2 | . . . . . 1 . . . . 1 . Reactor . | . . . . . . . . . . . . Propulsion 22 | 2 2 . . . 6 1 1 1 1 7 1 Treads 3 | . . . . . 2 . . . 1 . . Leg 15 | 2 . . . . 4 1 1 . . 6 1 Wheel 3 | . 2 . . . . . . . . 1 . Hover 1 | . . . . . . . . 1 . . . Flight . | . . . . . . . . . . . . Utility 21 | 1 2 . 1 2 5 3 2 . 2 1 2 Device 8 | . 1 . . 1 4 . . . 1 1 . Storage 2 | 1 . . 1 . . . . . . . . Processor 5 | . . . . . 1 1 2 . . . 1 Hackware 3 | . . . . . . 2 . . . . 1 Protection 3 | . 1 . . 1 . . . . 1 . . Artifact . | . . . . . . . . . . . . Weapon 18 | 2 . 2 . . 6 1 3 1 1 2 . Energy Gun 5 | 1 . . . . 1 1 . 1 . 1 . Energy Cannon . | . . . . . . . . . . . . Ballistic Gun 3 | 1 . 1 . . . . 1 . . . . Ballistic Cannon 6 | . . . . . 4 . 2 . . . . Launcher 3 | . . 1 . . 1 . . . . 1 . Special Weapon . | . . . . . . . . . . . . Impact Weapon . | . . . . . . . . . . . . Slashing Weapon . | . . . . . . . . . . . . Piercing Weapon 1 | . . . . . . . . . 1 . . Special Melee Weapon . | . . . . . . . . . . . . Unidentified Prototypes 2 | . . . . 1 1 . . . . . . Corrupted Parts 4 | . . . . . . 1 1 . . 2 . System Corruption 9 | . . . . . . 3 1 . . 5 . Parts Lost 22 | . . . . . 1 3 3 4 . . 11 Power 2 | . . . . . 1 . . . . . 1 Propulsion 8 | . . . . . . 2 1 1 . . 4 Utility 6 | . . . . . . . 1 2 . . 3 Weapon 6 | . . . . . . 1 1 1 . . 3 Highest Loss Streak 10 | . . . . . 1 1 3 2 . . 10 To Critical Strikes . | . . . . . . . . . . . . Average Backups 12 | 4 7 8 8 10 13 14 14 14 13 12 11 Power 2 | . 1 1 1 1 . 2 2 3 3 1 1 Propulsion . | 2 3 2 2 2 . . . . . 1 1 Utility 3 | . 1 3 3 3 5 6 4 4 3 3 2 Weapon 6 | . 1 2 2 3 7 6 7 7 6 7 7 Tool/Special . | . . . . . . . . . . . . Unused Backups 9 | . . . 1 . . 1 . . . 2 5 Power 4 | . . . . . . 1 . . . 2 1 Propulsion 2 | . . . . . . . . . . . 2 Utility 1 | . . . 1 . . . . . . . . Weapon 2 | . . . . . . . . . . . 2 Tool/Special . | . . . . . . . . . . . . Average Slot Usage (%) 95 | . 99 100 100 100 97 95 89 87 96 99 84 Engine 7 | . 14 14 14 14 7 6 7 7 7 5 . Treads 2 | . . . . . 4 . . . 4 2 . Leg 17 | . 11 . . . 26 28 22 20 15 25 24 Wheel 4 | . 16 28 28 28 5 . . . . 1 . Hover 2 | . . . . . . . . 2 7 1 . Device 9 | . 5 . . . 5 7 14 9 11 15 12 Storage 8 | . 14 14 14 14 9 7 7 7 7 7 6 Processor 5 | . . . . . 4 7 7 7 7 7 12 Hackware 3 | . . . . . . 12 7 7 2 . . Protection 5 | . 7 14 14 14 7 . . . 6 7 5 Energy Gun 6 | . 14 14 14 14 10 9 1 6 4 3 3 Ballistic Gun 8 | . 14 14 14 14 1 1 13 8 7 7 4 Ballistic Cannon 6 | . . . . . 13 10 5 6 7 10 5 Piercing Weapon 1 | . . . . . . . . . 2 . . Peak Build Rating 51 | 6 7 7 8 17 34 39 41 42 48 48 51 Average Rating 35 | 4 6 7 7 8 27 35 38 39 45 46 47 On Entrance 23 | . 6 7 7 8 9 33 32 41 39 47 47 Avg Prop Armor Cover (%) 8 | . . . . . 12 5 . 4 8 11 . Naked Turns . | . . . . . . . . . . . . Heaviest Build 57 | 11 14 14 29 29 44 46 45 45 56 57 54 Greatest Support 60 | 20 20 20 20 20 52 52 42 42 27 57 60 Greatest Overweight (x) 4 | . . . 1 1 2 1 1 1 2 4 1 Average Overweight (x) . | . . . . 1 . . . . 1 . . Largest Inventory Capacity 15 | 8 8 8 15 15 15 15 15 15 15 15 15 Average Capacity 14 | 6 8 8 11 15 15 15 15 15 15 15 15 Most Carried 15 | 6 8 8 8 12 15 15 15 15 15 15 15 Average Carried 13 | 4 7 8 7 10 13 14 14 14 14 14 13 Final Capacity 15 | 8 8 8 15 15 15 15 15 15 15 15 15 Final Carried 15 | 6 8 8 8 11 15 15 15 14 15 15 12 Class Distribution -------------------- 20% | Mutant 16% | Skirmisher 16% | Scavenger-Mutant 14% | Scavenger-Tank 13% | Tank 6% | Gunner 5% | Scavenger-Skirmisher 5% | Hacker-Skirmisher Dominant Class ---------------- Mutant | -10/Materials Mutant | -10/Mines Mutant | -10/Exiles Mutant | -9/Mines Skirmisher | -8/Materials Hacker-Skirmisher | -7/Factory Skirmisher | -7/Lower Caves Gunner | -7/Lower Caves Scavenger-Mutant | -7/Zion Scavenger-Tank | -6/Proximity Caves Scavenger-Skirmisher | -6/Factory Resources | -11 -10 -10 -10 -9 -8 -7 -7 -7 -7 -6 -6 ----------- Run | Yrd Mat Min Exi Min Mat Fac Low Low Zio Pro Fac Matter Collected 1864 | 166 154 36 . 10 295 220 298 211 80 359 35 Remotely . | . . . . . . . . . . . . Salvage Created 1746 | . 227 27 . . 558 220 195 142 . 240 137 Parts 86 | . 7 . . . 29 9 15 10 . 8 8 Haulers Intercepted 1 | . 1 . . . . . . . . . . Recyclers Shooed 1 | . . . . . . 1 . . . . . Parts Field Recycled . | . . . . . . . . . . . . Retrieved Matter . | . . . . . . . . . . . . Parts Self-Destructed 42 | . . . . . . . 12 9 . 21 . Prevented 5 | . . . . . . . 1 . . 4 . Parts Restored . | . . . . . . . . . . . . Kills | -11 -10 -10 -10 -9 -8 -7 -7 -7 -7 -6 -6 ------- Run | Yrd Mat Min Exi Min Mat Fac Low Low Zio Pro Fac Combat Hostiles Destroyed 49 | . 4 . . . 15 4 7 7 . 7 5 Guns 18 | . 4 . . . 3 3 1 2 . 3 2 Cannons 12 | . . . . . 9 1 . . . 1 1 AOE 19 | . . . . . 3 . 6 5 . 3 2 Classes Destroyed 12 | . 2 . . . 5 2 . . . 3 . Worker 1 | . . . . . . 1 . . . . . Builder 1 | . . . . . 1 . . . . . . Hauler 1 | . 1 . . . . . . . . . . Recycler 1 | . . . . . 1 . . . . . . Mechanic 2 | . . . . . 1 . . . . 1 . Swarmer 17 | . . . . . 3 . 4 3 . 3 4 Grunt 23 | . 4 . . . 9 2 3 3 . . 2 Brawler 1 | . . . . . . . . . . 1 . Duelist 1 | . . . . . . . . . . 1 . Sentry 5 | . . . . . 3 1 . . . 1 . Hunter 1 | . . . . . . . . . . 1 . Programmer 2 | . . . . . . 1 . 1 . . . Best Kill Streak 7 | . 2 . . . 7 1 4 3 . 4 4 Combat Bots Only 5 | . 2 . . . 5 1 4 3 . 3 4 Max Kills in Single Turn 3 | . 1 . . . 2 1 3 2 . 3 3 Gunslinging . | . . . . . . . . . . . . Exploded 3 | . . . . . 1 . 3 2 . 3 2 Melee . | . . . . . . . . . . . . Uniques/NPCs Destroyed . | . . . . . . . . . . . . Combat | -11 -10 -10 -10 -9 -8 -7 -7 -7 -7 -6 -6 -------- Run | Yrd Mat Min Exi Min Mat Fac Low Low Zio Pro Fac Hostile Shots Fired 366 | . 21 . . . 50 59 28 45 . 32 131 Missed 136 | . 7 . . . 15 22 9 16 . 13 54 Hits 230 | . 14 . . . 35 37 19 29 . 19 77 Projectile 230 | . 14 . . . 35 37 19 29 . 19 77 AOE 1 | . . . . . . . . . . . 1 Critical Strikes 6 | . . . . . 4 . . 1 . . 1 Damage Taken 3396 | . 169 15 . . 561 390 341 474 . 339 1107 Core 445 | . 11 . . . 55 51 48 56 . 20 204 Absorbed by Shields . | . . . . . . . . . . . . Core Remaining (%) 90 | 100 . . . 95 90 . . . . 75 . Volleys Fired 113 | . 22 6 . . 27 16 9 11 . 15 7 Largest 3 | . 2 2 . . 3 3 3 3 . 3 3 Hottest 130 | . 70 70 . . 119 102 102 130 . 130 130 Shots Fired 244 | . 43 11 . . 68 33 19 22 . 33 15 Gun 153 | . 43 10 . . 24 26 13 13 . 16 8 Cannon 72 | . . . . . 42 7 2 3 . 13 5 Launcher 19 | . . 1 . . 2 . 4 6 . 4 2 Special . | . . . . . . . . . . . . Kinetic 138 | . 21 5 . . 42 15 11 11 . 23 10 Thermal 47 | . 22 5 . . . 6 . 5 . 6 3 Explosive 19 | . . 1 . . 2 . 4 6 . 4 2 Electromagnetic 40 | . . . . . 24 12 4 . . . . Robot Hit Streak 15 | . 15 4 . . 9 11 6 6 . 10 4 Robot Miss Streak 18 | . 2 3 . . 13 4 3 3 . 18 4 Penetration Max . | . . . . . . . . . . . . Secondary Targets 1 | . 1 . . . . . . . . . . Max Gunslinging Chain 1 | . 1 . . . . . . . . . . Shots Hit Robots 177 | . 32 6 . . 53 25 17 13 . 20 11 Core Hits 182 | . 11 5 . . 58 20 18 19 . 34 17 Critical Kills . | . . . . . . . . . . . . Critical Parts Destroyed 1 | . 1 . . . . . . . . . . Critical Strikes 1 | . 1 . . . . . . . . . . Destroy 1 | . 1 . . . . . . . . . . Melee Attacks . | . . . . . . . . . . . . Impact . | . . . . . . . . . . . . Slashing . | . . . . . . . . . . . . Piercing . | . . . . . . . . . . . . Sneak Attacks . | . . . . . . . . . . . . Combat Hostiles . | . . . . . . . . . . . . Follow-up Attacks . | . . . . . . . . . . . . Damage Inflicted 4621 | . 328 100 . . 1435 475 517 527 . 797 442 Guns 1594 | . 328 72 . . 337 312 144 106 . 183 112 Cannons 1054 | . . . . . 605 163 32 46 . 140 68 Explosions 1973 | . . 28 . . 493 . 341 375 . 474 262 Melee . | . . . . . . . . . . . . Ramming . | . . . . . . . . . . . . Kinetic 1591 | . 117 22 . . 605 195 107 136 . 275 134 Thermal 529 | . 211 50 . . 100 58 . 16 . 48 46 Explosive 1873 | . . 28 . . 393 . 341 375 . 474 262 Electromagnetic 628 | . . . . . 337 222 69 . . . . Impact . | . . . . . . . . . . . . Slashing . | . . . . . . . . . . . . Piercing . | . . . . . . . . . . . . Highest Corruption 5 | . . . . . . 3 4 4 4 5 . Average Corruption 3 | . . . . . . 3 3 4 4 4 . Corruption Purged . | . . . . . . . . . . . . Corruption Blocked . | . . . . . . . . . . . . Effects 50 | . . . . . . 3 17 14 11 5 . Message Errors 15 | . . . . . . . 5 6 2 2 . Matter Fused 8 | . . . . . . . 1 1 5 1 . Heat Flow Errors 2 | . . . . . . 1 1 . . . . Energy Discharges 11 | . . . . . . 1 4 3 1 2 . Parts Rejected 1 | . . . . . . 1 . . . . . Data Loss (minor) 5 | . . . . . . . 3 . 2 . . Data Loss (major) 5 | . . . . . . . 2 2 1 . . Misfires 2 | . . . . . . . 1 1 . . . Alerts 1 | . . . . . . . . 1 . . . Overload Shots . | . . . . . . . . . . . . Overflow Damage 35 | . . . . . 9 . . 3 . 15 8 Projectiles . | . . . . . . . . . . . . Explosions 35 | . . . . . 9 . . 3 . 15 8 Melee . | . . . . . . . . . . . . Knockbacks 22 | . . . . . 14 4 1 3 . . . Impact . | . . . . . . . . . . . . Kinetic 22 | . . . . . 14 4 1 3 . . . Secondary . | . . . . . . . . . . . . Self-Inflicted Damage 222 | . . 15 . . 131 . 21 31 . . 24 Shots 8 | . . 1 . . 3 . 1 2 . . 1 Rammed . | . . . . . . . . . . . . Targets Rammed . | . . . . . . . . . . . . Kicked . | . . . . . . . . . . . . Crushed . | . . . . . . . . . . . . Highest Temperature 346 | . 218 93 . . 346 223 240 8 . . 2 Average Temperature 76 | . 63 47 . . 107 49 60 5 . . 2 Received Heat Transfer 1086 | . 93 . . . 306 141 126 183 . 72 165 Effects 2 | . . . . . 2 . . . . . . Energy Bleed 1 | . . . . . 1 . . . . . . Matter Decay 1 | . . . . . 1 . . . . . . Siege Activations . | . . . . . . . . . . . . Martial Activations . | . . . . . . . . . . . . Shielding Activations . | . . . . . . . . . . . . Robots Disrupted 1 | . . . . . 1 . . . . . . Combat Hostiles 1 | . . . . . 1 . . . . . . Robots Corrupted . | . . . . . . . . . . . . Combat Hostiles . | . . . . . . . . . . . . Parts Fried . | . . . . . . . . . . . . Impact Corruptions . | . . . . . . . . . . . . Robots Melted . | . . . . . . . . . . . . Combat Hostiles . | . . . . . . . . . . . . Parts Melted 2 | . 2 . . . . . . . . . . Heat Transferred 1284 | . 629 148 . . 100 148 . 37 . 111 111 Parts Sabotaged . | . . . . . . . . . . . . Parts Stolen . | . . . . . . . . . . . . Parts Stripped . | . . . . . . . . . . . . Power Chain Reactions 3 | . . . . . 3 . . . . . . Alert | -11 -10 -10 -10 -9 -8 -7 -7 -7 -7 -6 -6 ------- Run | Yrd Mat Min Exi Min Mat Fac Low Low Zio Pro Fac Maximum Alert Level 2 | . . . . . 1 . . . . . 2 Low Security (%) 81 | 100 100 100 . 100 77 100 . . . . . Level 1 5 | . . . . . 22 . . . . . . Level 2 13 | . . . . . . . . . . . 100 Level 3 . | . . . . . . . . . . . . Level 4 . | . . . . . . . . . . . . Level 5 . | . . . . . . . . . . . . High Security . | . . . . . . . . . . . . Max Security . | . . . . . . . . . . . . Peak Influence 679 | . 40 9 . . 317 136 . . . . 679 Initial 655 | . . . . . . 136 . . . . 655 Average 119 | . 9 . . . 90 49 . . . . 629 Influence Increases 2430 | . 113 9 . . 562 118 160 170 . 544 754 Destroy 0b10 Robot/C 1200 | . 80 . . . 300 80 140 140 . 360 100 Destroy 0b10 Robot/NC 40 | . 5 . . . 15 5 . . . 15 . Destroy Leader 202 | . 12 . . . 70 20 20 30 . 40 10 Allied During Kill 133 | . . . . . . . . . . 129 4 Trap Triggered on 0b10 30 | . . . . . 30 . . . . . . Successful Hack 37 | . 16 . . . 8 13 . . . . . Disable Machine 30 | . . . . . 30 . . . . . . Destroy Structure 83 | . . 9 . . 64 . . . . . 10 Advance Influence 600 | . . . . . . . . . . . 600 Lose Combat Pursuer 75 | . . . . . 45 . . . . . 30 Influence Decreases 1881 | . 113 9 . . 261 405 174 170 . 456 293 Entered New Map 204 | . . . . . . 165 6 . . . 33 Time Decay 1233 | . 113 9 . . 177 220 138 150 . 276 150 Lost Part 180 | . . . . . . 20 30 20 . . 110 Lost Ally 180 | . . . . . . . . . . 180 . Purge Threat 84 | . . . . . 84 . . . . . . Squads Dispatched 6 | . . . . . 1 1 . . . 1 3 Investigation 1 | . . . . . . . . . . . 1 Extermination 1 | . . . . . . 1 . . . . . Reinforcement 2 | . . . . . 1 . . . . . 1 Assault 1 | . . . . . . . . . . 1 . Garrison 1 | . . . . . . . . . . . 1 Intercept . | . . . . . . . . . . . . Searches Triggered . | . . . . . . . . . . . . Construction Impeded 1 | . . . . . 1 . . . . . . Haulers Reinforced 1 | . . . . . . . . . . . 1 Active Scanning Responses . | . . . . . . . . . . . . Cargo Convoy Interrupts . | . . . . . . . . . . . . Stealth | -11 -10 -10 -10 -9 -8 -7 -7 -7 -7 -6 -6 --------- Run | Yrd Mat Min Exi Min Mat Fac Low Low Zio Pro Fac Distress Signals 10 | . 1 . . . 7 1 . . . 1 . Communications Jammed . | . . . . . . . . . . . . Distress Signals . | . . . . . . . . . . . . Times Spotted 92 | . 9 . . . 26 5 7 13 . 20 12 Peak Tracking Total 8 | . 4 . . . 8 2 4 6 . 6 5 Tactical Retreats 4 | . . . . . 3 . . . . . 1 Traps | -11 -10 -10 -10 -9 -8 -7 -7 -7 -7 -6 -6 ------- Run | Yrd Mat Min Exi Min Mat Fac Low Low Zio Pro Fac Traps Triggered 2 | . . . . . 1 1 . . . . . Indirectly . | . . . . . . . . . . . . Trap Hack Attempts . | . . . . . . . . . . . . Triggered . | . . . . . . . . . . . . Disarmed . | . . . . . . . . . . . . Reprogrammed . | . . . . . . . . . . . . Reused 3 | . . . . . 3 . . . . . . Traps Reconfigurated 3 | . . . . . 3 . . . . . . Traps Extracted . | . . . . . . . . . . . . Installed . | . . . . . . . . . . . . Triggered 3 | . . . . . 3 . . . . . . Machines | -11 -10 -10 -10 -9 -8 -7 -7 -7 -7 -6 -6 ---------- Run | Yrd Mat Min Exi Min Mat Fac Low Low Zio Pro Fac Machines Disabled 2 | . . . . . 2 . . . . . . Max in Single Turn 1 | . . . . . 1 . . . . . . Machines Repaired . | . . . . . . . . . . . . Machines Dismantled . | . . . . . . . . . . . . Machines Sabotaged . | . . . . . . . . . . . . Overloaded Fab Kills . | . . . . . . . . . . . . Hacking | -11 -10 -10 -10 -9 -8 -7 -7 -7 -7 -6 -6 --------- Run | Yrd Mat Min Exi Min Mat Fac Low Low Zio Pro Fac Machines Accessed 15 | . 5 . 3 . 1 3 1 . . . 2 Terminals 10 | . 5 . . . 1 3 . . . . 1 Fabricators . | . . . . . . . . . . . . Repair Stations . | . . . . . . . . . . . . Recycling Units . | . . . . . . . . . . . . Scanalyzers . | . . . . . . . . . . . . Garrison Access 1 | . . . . . . . . . . . 1 Total Hacks 49 | . 14 . 20 . 4 7 1 . . . 3 Successful 33 | . 5 . 20 . 3 3 1 . . . 1 Failed 16 | . 9 . . . 1 4 . . . . 2 Catastrophic 4 | . 1 . . . 1 1 . . . . 1 Database Lockouts . | . . . . . . . . . . . . Manual 17 | . 7 . 1 . 2 7 . . . . . Terminals 26 | . 14 . . . 4 7 . . . . 1 Fabricators . | . . . . . . . . . . . . Repair Stations . | . . . . . . . . . . . . Recycling Units . | . . . . . . . . . . . . Scanalyzers . | . . . . . . . . . . . . Garrison Access 2 | . . . . . . . . . . . 2 Terminal Hacks 28 | . 3 . 20 . 2 1 1 . . . 1 Record 19 | . . . 19 . . . . . . . . Part Schematic 1 | . 1 . . . . . . . . . . Open Door 1 | . . . . . . . 1 . . . . Level Access Points 1 | . . . . . 1 . . . . . . Branch Access Points 2 | . 1 . . . . 1 . . . . . Emergency Access Points 1 | . . . . . . . . . . . 1 Unreport Threat 1 | . . . . . 1 . . . . . . Locate Traps 1 | . 1 . . . . . . . . . . Proto ID Catalog 1 | . . . 1 . . . . . . . . Fabricator Hacks . | . . . . . . . . . . . . Repair Station Hacks . | . . . . . . . . . . . . Recycling Unit Hacks . | . . . . . . . . . . . . Scanalyzer . | . . . . . . . . . . . . Garrison Access Hacks . | . . . . . . . . . . . . Unauthorized Hacks 5 | . 2 . . . 1 2 . . . . . Terminals 5 | . 2 . . . 1 2 . . . . . Track 1 | . 1 . . . . . . . . . . Botnet 4 | . 1 . . . 1 2 . . . . . Fabricators . | . . . . . . . . . . . . Repair Stations . | . . . . . . . . . . . . Recycling Units . | . . . . . . . . . . . . Scanalyzers . | . . . . . . . . . . . . Garrison Access . | . . . . . . . . . . . . Data Cores Recovered . | . . . . . . . . . . . . Used . | . . . . . . . . . . . . Hacking Detections 11 | . 5 . . . 1 3 . . . . 2 Full Trace Events 2 | . 1 . . . . . . . . . 1 Feedback Events . | . . . . . . . . . . . . Feedback Blocked . | . . . . . . . . . . . . Robot Schematics Acquired 2 | . . . . . . . . . 2 . . Robots Built . | . . . . . . . . . . . . Authchips . | . . . . . . . . . . . . Time . | . . . . . . . . . . . . Total Robot Build Rating . | . . . . . . . . . . . . Part Schematics Acquired 16 | . 1 . . . . . . . 15 . . Parts Built . | . . . . . . . . . . . . Authchips . | . . . . . . . . . . . . Time . | . . . . . . . . . . . . Total Part Build Rating . | . . . . . . . . . . . . Part Studies Acquired . | . . . . . . . . . . . . Parts Repaired . | . . . . . . . . . . . . Time . | . . . . . . . . . . . . Parts Recycled . | . . . . . . . . . . . . Recycled Matter . | . . . . . . . . . . . . Retrieved Matter . | . . . . . . . . . . . . Retrieved Components . | . . . . . . . . . . . . Parts Scanalyzed . | . . . . . . . . . . . . Part Schematics Acquired . | . . . . . . . . . . . . Parts Damaged . | . . . . . . . . . . . . Bothacking | -11 -10 -10 -10 -9 -8 -7 -7 -7 -7 -6 -6 ------------ Run | Yrd Mat Min Exi Min Mat Fac Low Low Zio Pro Fac Used RIF Installer . | . . . . . . . . . . . . Robots Hacked . | . . . . . . . . . . . . Non-combat . | . . . . . . . . . . . . Combat . | . . . . . . . . . . . . Robot Hacks Applied . | . . . . . . . . . . . . Relay Couplers Released . | . . . . . . . . . . . . Fabnet Peak Effective % . | . . . . . . . . . . . . Robots Rewired 2 | . . . . . . . . . . 2 . Allies Hacked . | . . . . . . . . . . . . Hacks Repelled . | . . . . . . . . . . . . Allies | -11 -10 -10 -10 -9 -8 -7 -7 -7 -7 -6 -6 -------- Run | Yrd Mat Min Exi Min Mat Fac Low Low Zio Pro Fac Total Allies 15 | . . 5 . . . . . . 8 2 . Largest Group 8 | . . 4 4 3 3 . . . 8 8 1 Highest-Rated Group 207 | . . 71 71 40 40 . . . 207 207 29 Highest-Rated Ally 31 | . . 31 31 16 16 . . . 31 31 29 Total Orders . | . . . . . . . . . . . . Ally Attacks 95 | . . . . . 5 . . . . 87 3 Total Damage 1585 | . . . . . 70 . . . . 1479 36 Kills 13 | . . . . . . . . . . 13 . Allies Corrupted 1 | . . . . . . . . . . 1 . Allies Melted . | . . . . . . . . . . . . Intel | -11 -10 -10 -10 -9 -8 -7 -7 -7 -7 -6 -6 ------- Run | Yrd Mat Min Exi Min Mat Fac Low Low Zio Pro Fac Active Infowar (turns) 1809 | . . . . 1 343 535 707 223 . . . Sensors 1 | . . . . 1 . . . . . . . Terrain 997 | . . . . . 71 . 703 223 . . . Machine Analysis 811 | . . . . . 272 535 4 . . . . Robot Analysis Total . | . . . . . . . . . . . . Derelict Logs Recovered 12 | . . 3 . 1 . . 2 1 2 3 . Drone Launches . | . . . . . . . . . . . . Drone Recoveries . | . . . . . . . . . . . . Exploration | -11 -10 -10 -10 -9 -8 -7 -7 -7 -7 -6 -6 ------------- Run | Yrd Mat Min Exi Min Mat Fac Low Low Zio Pro Fac Turns Passed 7361 | 68 322 371 422 116 558 535 797 676 2591 601 304 Spaces Moved 4745 | 49 253 391 481 105 342 297 468 356 1391 384 228 Core 11 | 11 . . . . . . . . . . . Treads 3 | . . . . . 3 . . . . . . Legs 3434 | 38 82 . . . 239 297 468 356 1391 335 228 Wheels 1297 | . 171 391 481 105 100 . . . . 49 . Hover . | . . . . . . . . . . . . Flight . | . . . . . . . . . . . . Fastest Speed 50 | 50 80 80 80 95 95 110 110 110 185 112 112 Average Speed 139 | 104 92 80 86 95 112 136 160 176 185 127 114 Slowest Speed 265 | 120 120 80 95 95 260 186 186 186 265 265 190 Overloaded Moves . | . . . . . . . . . . . . Propulsion Burnouts . | . . . . . . . . . . . . Robots Hopped . | . . . . . . . . . . . . Potential Cave-ins . | . . . . . . . . . . . . Cave-ins Triggered . | . . . . . . . . . . . . Exploration Rate (%) 45 | 4 50 73 91 21 35 6 67 55 86 58 5 Regions Visited 11 Branch Regions 7 Pre-discovered Areas 2 | . . 1 . 1 . . . . . . . Known Exits Taken 3 | . 1 . . . 1 1 . . . . . Unknown Exits Taken 8 | 1 . 1 1 1 . . 1 1 1 1 . Scrap Searched 11 | . . 1 . 1 . . 3 1 4 1 . Spaces Dug . | . . . . . . . . . . . . Terrain Destroyed 156 | . . 9 . . 68 . 19 29 . 22 9 Melee . | . . . . . . . . . . . . Projectile . | . . . . . . . . . . . . AOE 156 | . . 9 . . 68 . 19 29 . 22 9 Terrain Rammed . | . . . . . . . . . . . . Walls Destroyed . | . . . . . . . . . . . . Machines Disabled . | . . . . . . . . . . . . Actions | -11 -10 -10 -10 -9 -8 -7 -7 -7 -7 -6 -6 --------- Run | Yrd Mat Min Exi Min Mat Fac Low Low Zio Pro Fac Total 5278 | 65 301 437 487 121 461 396 495 382 1410 467 256 Wait 217 | . 14 39 3 10 48 67 . 5 6 12 13 Move 4734 | 48 252 390 480 104 341 296 467 355 1390 383 228 Hop . | . . . . . . . . . . . . Pick Up 54 | 11 6 . 1 4 14 4 5 1 5 2 1 Fast Attach 20 | 1 . . . . 4 4 2 1 2 5 1 Attach 30 | 5 3 . . 1 7 3 4 2 2 . 3 Detach . | . . . . . . . . . . . . Swap 45 | . 1 2 1 1 11 2 6 7 1 11 2 Drop 36 | . 3 . 2 1 9 4 2 . 4 10 1 Fire 113 | . 22 6 . . 27 16 9 11 . 15 7 Melee . | . . . . . . . . . . . . Ram . | . . . . . . . . . . . . Kick . | . . . . . . . . . . . . Crush . | . . . . . . . . . . . . Escape Stasis . | . . . . . . . . . . . . Rewire 29 | . . . . . . . . . . 29 . Trap . | . . . . . . . . . . . . Miscellaneous . | . . . . . . . . . . . . Route ------- -11/Scrapyard -10/Materials (discovered 3 exits: [*Mat] / *Min x2) -10/Mines (discovered 3 exits: [*Mat] / *Exi / [*Sub]) -10/Exiles -9/Mines -8/Materials (discovered 3 exits: *Fac x3) -7/Factory (discovered 2 exits: *Low x2) -7/Lower Caves -7/Lower Caves -7/Zion -6/Proximity Caves -6/Factory (discovered 1 exit: Low) History --------- Turn | Location | Event 7 | -11/Scrapyard | Discovered new exit (range 15) 69 | -11/Scrapyard | Entered Materials 120 | -10/Materials | Identified exit to Mines 307 | -10/Materials | Build established: Mutant 322 | -10/Materials | Discovered new exit (range 8) 391 | -10/Materials | Entered Mines 408 | -10/Mines | Learned 4 Materials zone layouts 491 | -10/Mines | Assembled infested the area 527 | -10/Mines | Met 8R-AWN 569 | -10/Mines | Discovered new exit (range 13) 577 | -10/Mines | Discovered new exit (range 8) 685 | -10/Mines | Learned location of Zion (-7) 707 | -10/Mines | Assisted by bots powering up and referring to "LRC-V3" 721 | -10/Mines | Learned Materials emergency access door positions 734 | -10/Mines | Discovered new exit (range 5) 762 | -10/Mines | Entered Exiles 762 | -10/Exiles | Accompanied by 4 allies 783 | -10/Exiles | Welcomed by 8R-AWN 792 | -10/Exiles | Led the pair of lost Derelicts to a safe place 801 | -10/Exiles | Met EX-HEX 824 | -10/Exiles | Met EX-BIN 839 | -10/Exiles | Aligned with FarCom system 840 | -10/Exiles | Given EX-Vault access code 876 | -10/Exiles | Opened EX-Vault 884 | -10/Exiles | Found Trap Reconfigurator 901 | -10/Exiles | Warned to stay clear of 0b10 Research branches 923 | -10/Exiles | Met EX-DEC 1017 | -10/Exiles | Visited The Gauntlet 1166 | -10/Exiles | Discovered new exit (range 14) 1184 | -10/Exiles | Left Exiles lab with Trap Reconfigurator 1184 | -10/Exiles | Entered Mines 1184 | -9/Mines | Accompanied by 3 allies 1194 | -9/Mines | Learned Materials security intel 1214 | -9/Mines | Found a damaged Exp. Sensor Array with a note attached 1216 | -9/Mines | Found Prototype Device 1217 | -9/Mines | Identified Exp. Sensor Array 1230 | -9/Mines | Discovered new exit (range 7) 1234 | -9/Mines | Met a Derelict bent on vengeance 1261 | -9/Mines | Learned location of Storage (-9) 1300 | -9/Mines | Entered Materials 1300 | -8/Materials | Accompanied by 3 allies 1300 | -8/Materials | Evolved 4 slots: Propulsion x2, Utility x1, Weapon x1 1301 | -8/Materials | Identified exit to Factory 1424 | -8/Materials | Lost 3 allies 1607 | -8/Materials | Build established: Skirmisher 1858 | -8/Materials | Entered Factory 1858 | -7/Factory | Evolved 2 slots: Utility x2 2108 | -7/Factory | Identified exit to Lower Caves 2393 | -7/Factory | Entered Lower Caves 2627 | -7/Lower Caves | Lost 3 parts (1n1u1w) 2964 | -7/Lower Caves | Encountered a Warlord checkpoint 3153 | -7/Lower Caves | Discovered new exit (range 8) 3175 | -7/Lower Caves | Learned Factory trap positions 3190 | -7/Lower Caves | Entered another Lower Caves area 3411 | -7/Lower Caves | Learned 4 Factory zone layouts 3587 | -7/Lower Caves | Build established: Gunner 3839 | -7/Lower Caves | Discovered new exit (range 15) 3862 | -7/Lower Caves | Encountered a Warlord checkpoint 3866 | -7/Lower Caves | Attracted the attention of an 0b10 checkpoint 3866 | -7/Lower Caves | Entered Zion 3940 | -7/Zion | Discovered new exit (range 15) 4175 | -7/Zion | Gained Derelict followers 4254 | -7/Zion | System corruption cleaned by Quarantine Array 4291 | -7/Zion | Build established: Tank 4363 | -7/Zion | Gained Derelict followers 4661 | -7/Zion | Learned Factory non-interactive machine intel 5083 | -7/Zion | Learned location of 1 exit from Factory 5252 | -7/Zion | Build established: Scavenger-Tank 5512 | -7/Zion | Learned Factory fabricator intel 5693 | -7/Zion | Rebuked by Imprinter 5696 | -7/Zion | Build established: Scavenger-Mutant 6457 | -7/Zion | Entered Proximity Caves 6457 | -6/Proximity Caves | Accompanied by 8 allies 6460 | -6/Proximity Caves | Spotter reported a threat 6508 | -6/Proximity Caves | Attracted the attention of an 0b10 outpost 6700 | -6/Proximity Caves | Learned Factory garrison access intel 6707 | -6/Proximity Caves | Spotter reported a threat 6778 | -6/Proximity Caves | Spotter reported a threat 6795 | -6/Proximity Caves | Build established: Scavenger-Tank 6838 | -6/Proximity Caves | Learned Factory trap positions 6882 | -6/Proximity Caves | Spotter reported a threat 7050 | -6/Proximity Caves | Discovered new exit (range 6) 7058 | -6/Proximity Caves | Entered Factory 7058 | -6/Factory | Accompanied by 1 ally 7058 | -6/Factory | Evolved 2 slots: Utility x2 7059 | -6/Factory | Identified exit to Lower Caves 7061 | -6/Factory | Loaded intel: 81 trap records 7062 | -6/Factory | Loaded intel: 235 non-interactive machine locations 7063 | -6/Factory | Loaded intel: 6 fabricator locations 7064 | -6/Factory | Loaded intel: 4 garrison access locations 7245 | -6/Factory | Garrison activated, responded to threat 7362 | -6/Factory | Self-destructed Last Messages --------------- 07325_ Penetrated by Slug. 07330_ Acquired Carbon-fiber Leg. 07330_ Fission Core destroyed. 07331_ Penetrated by Slug. 07333_ Flak Cannon destroyed. 07334_ K-01 Serf cleans the Power Conduit. 07339_ Slug penetrates Wall. 07339_ Carbon-fiber Leg destroyed. 07339_ Slug penetrates Wall. 07340_ K-01 Serf cleans the Power Conduit. 07346_ Imp. Cooling System destroyed. 07346_ Slug penetrates Wall. 07347_ Drone sends a signal. 07356_ Connecting with Garrison Access... 07356_ ALERT: Suspicious activity at Garrison Access F002. Dispatching Investigation squad. 07359_ Imp. Heat Sink destroyed. 07359_ Critical hit (Burn: +37). 07361_ Carbon-fiber Leg destroyed. 07362_ Slug penetrates Wall. Map ----- +----------------------------------------------------+ | ????????????????"""?"""?"""?????????????#"" " " # | | ????????????????"""?"""?"""?????????????#"" + | | ????????????????"""?"""?"""?????????????#" # | | ????????????????????????????????????????# ! ??# | | ????????????????????????????????????????# ????# | | ????????????????????????????????????????# ??????# | | ????????????????????????????????????????#????????# | | ?????????????????????????????????????????????????# | | ?????????????????????????????"?"?"?"?"???????????# | | ???????????????????????????? " " "?"?" ######+### | | ???????????????????????????+ " " "?"?" # # | | ???????????????????????????# " " "?"?" # # | | ??????????^????????????????# " " "?"?" # # | | "?"""??????????????????????# " " " " " # # | | "?"""????????? ???????????# " " " " " # # | | "?"""????????? ??????????# " " " " " =# + | | ??????????^?? k ?????????# " " " "?" # # | | "?"""???????? ????????# ??? # # | | "?"""??????? ???????# ???? # # | | "?"""????^??^ ######## # #######+######+### | | ???????????? k R kA | | ???????????? * | | ??????????? *%= | | ??????????? Y %% | | ??????????? h h !=% | | ??????????????????#######@######+#####% ###+### | | ???????????????????# #? ??#[ T # | | ???????""""?""""???#""" # # # # | | ???????""""?""""???#""" # # # # | | ???????""""?""""???#""" " # # # """ """ # | | ???????""""?""""???# gg"" # # # """ """ # | | ???????""""?""""???#""" G # # # """ """ # | | ???????""""?""""???#""" g"" # # # # | | ???????????????????#""" " # # # # | | ???????????????????# # #/########### | | ???????????????????################### #????? | | ?????????????????????????????????????# #????? | | ?????????????????????????????????????# #????? | | ?????????????????????????????????????# #????? | | ?????????????????????????????????????# #????? | | ?????????????????????????????????????# #????? | | ?????????????????????????????????????########????? | | ?????????????????????????????????????????????????? | | ?????????????????????????????????????????????????? | | ?????????????????????????????????????????????????? | | ?????????????????????????????????????????????????? | | ?????????????????????????????????????????????????? | | ?????????????????????????????????????????????????? | | ?????????????????????????????????????????????????? | | ?????????????????????????????????????????????????? | +----------------------------------------------------+ Best States ------------- Heat Dissipation 78 Energy Generation 18 Energy Capacity 310 Matter Stores 300 Matter Capacity 300 Sight Range 16 Terrain Scan Range 16 Terrain Scan Density 210 Armor Coverage 225 Evasion (%) 55 Recoil Reduction 2 Salvage Targeting 2 Offensive Hacking 20 Item Schematics ----------------- Datajack | -10/Materials | Hacked Powered Hammer | -7/Zion | Archive Lgt. Angular Momentum Engine | -7/Zion | Archive Adv. Assault Cannon | -7/Zion | Archive Flexi-carbon Leg | -7/Zion | Archive Imp. EM Pulse Cannon | -7/Zion | Archive Adv. Signal Interpreter | -7/Zion | Archive Gauss Cannon | -7/Zion | Archive Imp. Recalibrator | -7/Zion | Archive Imp. Weapon Cycler | -7/Zion | Archive Power Maul | -7/Zion | Archive Nuclear Pulse Thruster | -7/Zion | Archive Adv. Terrain Scan Processor | -7/Zion | Archive Magnetic Acceleration Cannon | -7/Zion | Archive Coil Gun | -7/Zion | Archive Imp. Medium Armor Plating | -7/Zion | Archive Robot Schematics ------------------ K-01 Serf | -7/Zion | Archive S-27 Virus | -7/Zion | Archive Fabricated ------------ Nothing Repaired ---------- Nothing Studied --------- None Alien Tech Used ----------------- None Achievements -------------- Look Less Dangerous Next Time Sixth Sense Challenges ------------ None Game ------ Seed CryofiberBiocellPit Manual? 0 Play Time 01:09:49 Cumulative 71.6 hours Start 2026.02.16 @ 22:49:03 End 2026.02.17 @ 00:14:02 Sessions 3 Manual Loads 0 Difficulty Rogue Special Mode None Game No. 53 Rogue 53 Adventurer 0 Explorer 0 Win Type - Total 1 Types 1/0/0/0/0/0/0/0/0/0 Lore% 46 Gallery% 42 Achievement% 31 Wizard Run 0 Options --------- Layout 1 ASCII 1 Keyboard 0 Movement Mouse Keybinds 0 Fullscreen 1 Font 32/SmallcapsGlow Map View 50x35 Zoom Use 0% Tactical HUD 1 Map Filters NONE Filters NONE Steam 1 RUN: 8c25e372-a503-4ffb-9d8e-55e5a420671e